{"text_format":"3","workbook":"xlsx","n_sheets":1,"sheets":["מחשבון הלוואות"],"not_rendered":{"defined_names":9},"read":"whole","date_system":"1900"}

{"sheet":"מחשבון הלוואות","index":0,"n_rows":22,"n_cols":13,"rows_kept":22,"merged":[[1,1,1,3],[1,6,2,8],[1,11,2,12],[2,1,2,3],[6,5,6,6],[7,5,7,6],[10,2,10,5],[10,6,10,8],[10,9,10,12],[18,2,18,12]]}
[]
[null,"מחשבון הלוואה",{"$nulls":4},{"v":50000,"d":"50,000 ₪"},{"$nulls":4},{"v":40673,"d":"4067300.00%"}]
[null,"ללימודים גבוהים"]
[]
[null," מומלץ שסך ההחזרים החודשיים של הלוואות הסטודנטים שלך לא יעלו על 8% מהמשכורת השנתית שלך בשנה הראשונה."]
[]
[null,null,"התשלום החודשי המשולב הנוכחי שלך הוא:",null,null,{"$f":"CollegeLoans[[#Totals],[תשלום חודשי נוכחי]]","v":{"v":328.58590726058833,"d":"328.59 ₪"}},null,null,"התשלום החודשי המשולב המתוכנן שלך הוא:",{"$nulls":3},{"$f":"CollegeLoans[[#Totals],[תשלום מתוכנן]]","v":{"v":328.58590726058833,"d":"328.59 ₪"}}]
[null,null,"אחוז מההכנסה השנתית:",null,null,{"$f":"CollegeLoans[[#Totals],[תשלום חודשי נוכחי]]/EstimatedMonthlySalary","v":{"v":0.07886061774254119,"d":"7.89%"}},null,null,"אחוז מההכנסה השנתית:",{"$nulls":3},{"$f":"CollegeLoans[[#Totals],[תשלום מתוכנן]]/EstimatedMonthlySalary","v":{"v":0.07886061774254119,"d":"7.89%"}}]
[]
[]
[null,null,"פרטי הלוואה כלליים",{"$nulls":3},"נתוני החזר ההלוואה",null,null,"פרטי תשלום"]
[null,null,"מספר הלוואה","מלווה","סכום ההלוואה","שיעור ריבית שנתי","תאריך התחלה","משך (שנים)","תאריך סיום","תשלום חודשי נוכחי","סך הריבית","תשלום מתוכנן","תשלום שנתי"]
[null,null,"10998M88","מלווה 1",{"v":10000,"d":"10,000.00 ₪"},{"v":0.05,"d":"5.00%"},{"v":40634,"d":"4063400.00%"},10,{"$f":"IF(AND(CollegeLoans[[#This Row],[תאריך התחלה]]>0,CollegeLoans[[#This Row],[משך (שנים)]]>0),EDATE(CollegeLoans[[#This Row],[תאריך התחלה]],CollegeLoans[[#This Row],[משך (שנים)]]*12),\"\")","v":{"v":44287,"d":"4428700.00%"}},{"$f":"IF(AND(LoanStartLToday,COUNT(CollegeLoans[[#This Row],[סכום ההלוואה]:[משך (שנים)]])=4,CollegeLoans[[#This Row],[תאריך התחלה]]<TODAY()),PMT(CollegeLoans[[#This Row],[שיעור ריבית שנתי]]/12,CollegeLoans[[#This Row],[משך (שנים)]]*12,-CollegeLoans[[#This Row],[סכום ההלוואה]],0,0),\"\")","v":{"v":106.06551523907524,"d":"106.07 ₪"}},{"$f":"IFERROR((CollegeLoans[[#This Row],[תשלום מתוכנן]]*(CollegeLoans[[#This Row],[משך (שנים)]]*12))-CollegeLoans[[#This Row],[סכום ההלוואה]],\"\")","v":{"v":2727.8618286890287,"d":"2,727.86 ₪"}},{"$f":"IF(COUNTA(CollegeLoans[[#This Row],[סכום ההלוואה]:[משך (שנים)]])<>4,\"\",PMT(CollegeLoans[[#This Row],[שיעור ריבית שנתי]]/12,CollegeLoans[[#This Row],[משך (שנים)]]*12,-CollegeLoans[[#This Row],[סכום ההלוואה]],0,0))","v":{"v":106.06551523907524,"d":"106.07 ₪"}},{"$f":"IFERROR(CollegeLoans[[#This Row],[תשלום מתוכנן]]*12,\"\")","v":{"v":1272.7861828689029,"d":"1,272.79 ₪"}}]
[null,null,"20987N87","מלווה 2",{"v":8000,"d":"8,000.00 ₪"},{"v":0.05,"d":"5.00%"},{"v":40664,"d":"4066400.00%"},10,{"$f":"IF(AND(CollegeLoans[[#This Row],[תאריך התחלה]]>0,CollegeLoans[[#This Row],[משך (שנים)]]>0),EDATE(CollegeLoans[[#This Row],[תאריך התחלה]],CollegeLoans[[#This Row],[משך (שנים)]]*12),\"\")","v":{"v":44317,"d":"4431700.00%"}},{"$f":"IF(AND(LoanStartLToday,COUNT(CollegeLoans[[#This Row],[סכום ההלוואה]:[משך (שנים)]])=4,CollegeLoans[[#This Row],[תאריך התחלה]]<TODAY()),PMT(CollegeLoans[[#This Row],[שיעור ריבית שנתי]]/12,CollegeLoans[[#This Row],[משך (שנים)]]*12,-CollegeLoans[[#This Row],[סכום ההלוואה]],0,0),\"\")","v":{"v":84.85241219126019,"d":"84.85 ₪"}},{"$f":"IFERROR((CollegeLoans[[#This Row],[תשלום מתוכנן]]*(CollegeLoans[[#This Row],[משך (שנים)]]*12))-CollegeLoans[[#This Row],[סכום ההלוואה]],\"\")","v":{"v":2182.289462951223,"d":"2,182.29 ₪"}},{"$f":"IF(COUNTA(CollegeLoans[[#This Row],[סכום ההלוואה]:[משך (שנים)]])<>4,\"\",PMT(CollegeLoans[[#This Row],[שיעור ריבית שנתי]]/12,CollegeLoans[[#This Row],[משך (שנים)]]*12,-CollegeLoans[[#This Row],[סכום ההלוואה]],0,0))","v":{"v":84.85241219126019,"d":"84.85 ₪"}},{"$f":"IFERROR(CollegeLoans[[#This Row],[תשלום מתוכנן]]*12,\"\")","v":{"v":1018.2289462951222,"d":"1,018.23 ₪"}}]
[null,null,"36785LM","מלווה 3",{"v":6000,"d":"6,000.00 ₪"},{"v":0.045,"d":"4.50%"},{"v":40969,"d":"4096900.00%"},10,{"$f":"IF(AND(CollegeLoans[[#This Row],[תאריך התחלה]]>0,CollegeLoans[[#This Row],[משך (שנים)]]>0),EDATE(CollegeLoans[[#This Row],[תאריך התחלה]],CollegeLoans[[#This Row],[משך (שנים)]]*12),\"\")","v":{"v":44621,"d":"4462100.00%"}},{"$f":"IF(AND(LoanStartLToday,COUNT(CollegeLoans[[#This Row],[סכום ההלוואה]:[משך (שנים)]])=4,CollegeLoans[[#This Row],[תאריך התחלה]]<TODAY()),PMT(CollegeLoans[[#This Row],[שיעור ריבית שנתי]]/12,CollegeLoans[[#This Row],[משך (שנים)]]*12,-CollegeLoans[[#This Row],[סכום ההלוואה]],0,0),\"\")","v":{"v":62.18304525420918,"d":"62.18 ₪"}},{"$f":"IFERROR((CollegeLoans[[#This Row],[תשלום מתוכנן]]*(CollegeLoans[[#This Row],[משך (שנים)]]*12))-CollegeLoans[[#This Row],[סכום ההלוואה]],\"\")","v":{"v":1461.9654305051017,"d":"1,461.97 ₪"}},{"$f":"IF(COUNTA(CollegeLoans[[#This Row],[סכום ההלוואה]:[משך (שנים)]])<>4,\"\",PMT(CollegeLoans[[#This Row],[שיעור ריבית שנתי]]/12,CollegeLoans[[#This Row],[משך (שנים)]]*12,-CollegeLoans[[#This Row],[סכום ההלוואה]],0,0))","v":{"v":62.18304525420918,"d":"62.18 ₪"}},{"$f":"IFERROR(CollegeLoans[[#This Row],[תשלום מתוכנן]]*12,\"\")","v":{"v":746.1965430505102,"d":"746.20 ₪"}}]
[null,null,"765R43","מלווה 4",{"v":4000,"d":"4,000.00 ₪"},{"v":0.05,"d":"5.00%"},{"v":41030,"d":"4103000.00%"},5,{"$f":"IF(AND(CollegeLoans[[#This Row],[תאריך התחלה]]>0,CollegeLoans[[#This Row],[משך (שנים)]]>0),EDATE(CollegeLoans[[#This Row],[תאריך התחלה]],CollegeLoans[[#This Row],[משך (שנים)]]*12),\"\")","v":{"v":42856,"d":"4285600.00%"}},{"$f":"IF(AND(LoanStartLToday,COUNT(CollegeLoans[[#This Row],[סכום ההלוואה]:[משך (שנים)]])=4,CollegeLoans[[#This Row],[תאריך התחלה]]<TODAY()),PMT(CollegeLoans[[#This Row],[שיעור ריבית שנתי]]/12,CollegeLoans[[#This Row],[משך (שנים)]]*12,-CollegeLoans[[#This Row],[סכום ההלוואה]],0,0),\"\")","v":{"v":75.48493457604374,"d":"75.48 ₪"}},{"$f":"IFERROR((CollegeLoans[[#This Row],[תשלום מתוכנן]]*(CollegeLoans[[#This Row],[משך (שנים)]]*12))-CollegeLoans[[#This Row],[סכום ההלוואה]],\"\")","v":{"v":529.0960745626244,"d":"529.10 ₪"}},{"$f":"IF(COUNTA(CollegeLoans[[#This Row],[סכום ההלוואה]:[משך (שנים)]])<>4,\"\",PMT(CollegeLoans[[#This Row],[שיעור ריבית שנתי]]/12,CollegeLoans[[#This Row],[משך (שנים)]]*12,-CollegeLoans[[#This Row],[סכום ההלוואה]],0,0))","v":{"v":75.48493457604374,"d":"75.48 ₪"}},{"$f":"IFERROR(CollegeLoans[[#This Row],[תשלום מתוכנן]]*12,\"\")","v":{"v":905.8192149125249,"d":"905.82 ₪"}}]
[null,null,"סכומים",null,{"$f":"SUBTOTAL(109,CollegeLoans[סכום ההלוואה])","v":{"v":28000,"d":"28,000.00 ₪"}},{"$nulls":4},{"$f":"SUBTOTAL(109,CollegeLoans[תשלום חודשי נוכחי])","v":{"v":328.58590726058833,"d":"328.59 ₪"}},{"$f":"SUBTOTAL(109,CollegeLoans[סך הריבית])","v":{"v":6901.212796707978,"d":"6,901.21 ₪"}},{"$f":"SUBTOTAL(109,CollegeLoans[תשלום מתוכנן])","v":{"v":328.58590726058833,"d":"328.59 ₪"}},{"$f":"SUBTOTAL(109,CollegeLoans[תשלום שנתי])","v":{"v":3943.03088712706,"d":"3,943.03 ₪"}}]
[null,null,"ממוצעים",null,{"$f":"AVERAGE(CollegeLoans[סכום ההלוואה])","v":{"v":7000,"d":"7,000.00 ₪"}},{"$f":"AVERAGE(CollegeLoans[שיעור ריבית שנתי])","v":{"v":0.04875,"d":"4.88%"}},{"$nulls":4},{"$f":"AVERAGE(CollegeLoans[סך הריבית])","v":{"v":1725.3031991769944,"d":"1,725.30 ₪"}},null,{"$f":"AVERAGE(CollegeLoans[תשלום שנתי])","v":{"v":985.757721781765,"d":"985.76 ₪"}}]
[]
[{"$nulls":10},"סך החזר ההלוואה המשולב:",null,{"$f":"CollegeLoans[[#Totals],[סכום ההלוואה]]+CollegeLoans[[#Totals],[סך הריבית]]","v":{"v":34901.21279670798,"d":"34,901.21 ₪"}}]
[]
[{"$nulls":10},"הכנסה חודשית משוערת לאחר סיום הלימודים:",null,{"$f":"(EstimatedAnnualSalary/12)","v":{"v":4166.666666666667,"d":"4,166.67 ₪"}}]